fUST/lending_fUST_20240902
["ID","MTS","AMOUNT","RATE_DAILY","PERIOD"]
[336979671,1725274240064,-500.0,0.00024657,2]
[336979673,1725274240073,-718.52,0.00024657,2]
[336979674,1725274240083,-500.0,0.00024657,2]
[336979675,1725274240092,-1029.29,0.00024657,2]
[336979676,1725274240102,-500.0,0.00024657,2]
[336979677,1725274240111,-500.0,0.00024657,2]
[336979678,1725274240120,-613.02,0.00024657,2]
[336979679,1725274240130,-500.0,0.00024657,2]
[336979680,1725274240139,-500.0,0.00024657,2]
[336979681,1725274240148,-865.09,0.00024657,2]
[336979682,1725274240158,-687.81,0.00024657,2]
[336979683,1725274240167,-813.79,0.00024657,2]
[336979684,1725274240176,-500.0,0.00024657,2]
[336979685,1725274240185,-500.0,0.00024657,2]
[336979686,1725274240195,-634.79847045,0.00024657,2]
[336979687,1725274240204,-500.0,0.00024657,2]
[336979688,1725274240214,-500.0,0.00024657,2]
[336979689,1725274240223,-1898.68,0.00024657,2]
[336979690,1725274240232,-500.0,0.00024657,2]
[336979691,1725274240241,-530.44398048,0.00024657,2]
[336979692,1725274240251,-534.47,0.00024657,2]
[336979693,1725274240260,-500.0,0.00024657,2]
[336979694,1725274240270,-500.0,0.00024657,2]
[336979695,1725274240280,-641.19955941,0.00024657,2]
[336979696,1725274240301,-624.13044059,0.00024657,2]
[336979697,1725274240310,-500.0,0.00024657,2]
[336979698,1725274240320,-326.19791663,0.00024657,2]
[336979699,1725274240466,-283.55208337,0.00024657,2]
[336979700,1725274240475,-500.0,0.00024657,2]
[336979701,1725274240484,-507.61811917,0.00024657,2]
[336979702,1725274240494,-500.0,0.00024657,2]
[336979703,1725274240505,-960.51,0.00024657,2]
[336979704,1725274240515,-500.0,0.00024657,2]
[336979705,1725274240524,-500.0,0.00024657,2]
[336979706,1725274240534,-500.0,0.00024657,2]
[336979707,1725274240543,-500.0,0.00024657,2]
[336979708,1725274240554,-500.0,0.00024657,2]
[336979709,1725274240567,-668.74,0.00024657,2]
[336979710,1725274240576,-500.0,0.00024657,2]
[336979711,1725274240585,-500.0,0.00024657,2]
[336979712,1725274240594,-257.41255442,0.00024657,2]
[336979713,1725274240604,-978.13,0.00024657,2]
[336979714,1725274240616,-893.12,0.00024657,2]
[336979715,1725274240627,-500.0,0.00024657,2]
[336979716,1725274240639,-500.0,0.00024657,2]
[336979717,1725274240652,-500.0,0.00024657,2]
[336979718,1725274240663,-500.0,0.00024657,2]
[336979719,1725274240673,-735.7,0.00024657,2]
[336979720,1725274240682,-3970.16,0.00024657,2]
[336979721,1725274240693,-500.0,0.00024657,2]
[336979722,1725274240704,-503.81904186,0.00024657,2]
[336979723,1725274240713,-877.32,0.00024657,2]
[336979724,1725274240723,-503.13671639,0.00024657,2]
[336979725,1725274240732,-4849.28,0.00024657,2]
[336979726,1725274240742,-500.0,0.00024657,2]
[336979727,1725274240751,-953.2,0.00024657,2]
[336979728,1725274240760,-500.0,0.00024657,2]
[336979729,1725274240772,-1136.95,0.00024657,2]
[336979730,1725274240782,-500.0,0.00024657,2]
[336979731,1725274240792,-500.0,0.00024657,2]
[336979732,1725274240802,-730.41,0.00024657,2]
[336979733,1725274240811,-526.35037879,0.00024657,2]
[336979734,1725274240821,-500.0,0.00024657,2]
[336979735,1725274240830,-500.0,0.00024657,2]
[336979736,1725274240840,-500.0,0.00024657,2]
[336979737,1725274240849,-1672.46,0.00024657,2]
[336979738,1725274240859,-710.81,0.00024657,2]
[336979739,1725274240868,-500.0,0.00024657,2]
[336979740,1725274240877,-640.41,0.00024657,2]
[336979741,1725274240888,-1952.94,0.00024657,2]
[336979742,1725274240898,-457.60562486,0.00024657,2]
[336979743,1725274240907,-500.0,0.00024657,2]
[336979744,1725274240917,-500.0,0.00024657,2]
[336979745,1725274240928,-572.65543599,0.00024657,2]
[336979746,1725274240939,-941.61,0.00024657,2]
[336979747,1725274240949,-500.0,0.00024657,2]
[336979748,1725274240959,-547.19,0.00024657,2]
[336979749,1725274240970,-500.0,0.00024657,2]
[336979750,1725274240980,-500.0,0.00024657,2]
[336979751,1725274241001,-1195.94,0.00024657,2]
[336979752,1725274241010,-500.0,0.00024657,2]
[336979753,1725274241019,-893.97,0.00024657,2]
[336979754,1725274241029,-893.97,0.00024657,2]
[336979755,1725274241038,-893.97,0.00024657,2]
[336979756,1725274241047,-500.0,0.00024657,2]
[336979757,1725274241057,-893.97,0.00024657,2]
[336979758,1725274241067,-523.2,0.00024657,2]
[336979759,1725274241076,-572.3146325,0.00024657,2]
[336979760,1725274241086,-500.0,0.00024657,2]
[336979761,1725274241095,-500.0,0.00024657,2]
[336979762,1725274241104,-500.0,0.00024657,2]
[336979763,1725274241114,-500.0,0.00024657,2]
[336979764,1725274241123,-500.0,0.00024657,2]
[336979765,1725274241132,-500.0,0.00024657,2]
[336979766,1725274241142,-1299.65,0.00024657,2]
[336979767,1725274241151,-1158.75,0.00024657,2]
[336979768,1725274241161,-668.22,0.00024657,2]
[336979769,1725274241170,-503.04928506,0.00024657,2]
[336979770,1725274241179,-500.0,0.00024657,2]
[336979771,1725274241188,-500.0,0.00024657,2]
[336979772,1725274241197,-500.0,0.00024673,2]
[336979773,1725274241208,-500.0,0.00024673,2]
[336979774,1725274241218,-502.44056554,0.00024673,2]
[336979775,1725274241228,-176.71261535,0.00024673,2]
[336979776,1725274241241,-501.02581338,0.00024673,2]
[336979777,1725274241251,-1000.0,0.00024771,2]
[336979778,1725274241260,-171.792466,0.00024793,2]
[336979779,1725274241269,-250.80434902,0.00024831,3]
[336979780,1725274241278,-1964.65023886,0.00024831,2]
[336979781,1725274241287,-201.18317704,0.00024921,3]
[336979782,1725274241297,-893.97,0.0002493,2]
[336979783,1725274241306,-893.97,0.0002493,2]
[336979784,1725274241316,-893.97,0.0002493,2]
[336979785,1725274241325,-11129.79348524,0.00024931,11]
[336979786,1725274241334,-584.24,0.00024931,2]
[336979787,1725274241344,-500.0,0.00024931,2]
[336979788,1725274241354,-151.0,0.00024931,7]
[336979789,1725274241363,-500.0,0.00024931,2]
[336979790,1725274241373,-500.0,0.00024931,2]
[336979791,1725274241383,-500.0,0.00024931,2]
[336979792,1725274241392,-500.0,0.00024931,2]
[336979793,1725274241403,-500.0,0.00024931,2]
[336979794,1725274241413,-500.0,0.00024931,2]
[336979795,1725274241422,-497.32614516,0.00024931,2]
[336979796,1725274241434,-500.0,0.00024931,2]
[336979797,1725274241445,-1144.91,0.00024931,2]
[336979798,1725274241454,-500.0,0.00024931,2]
[336979799,1725274241465,-500.0,0.00024931,2]
[336979800,1725274241474,-500.0,0.00024931,2]
[336979801,1725274241484,-500.0,0.00024931,2]
[336979802,1725274241493,-795.89,0.00024931,2]
[336979803,1725274241502,-521.53,0.00024931,2]
[336979804,1725274241512,-651.75,0.00024931,2]
[336979805,1725274241521,-500.0,0.00024931,2]
[336979806,1725274241531,-500.0,0.00024931,2]
[336979807,1725274241540,-500.0,0.00024931,2]
[336979808,1725274241549,-503.34693228,0.00024931,2]
[336979809,1725274241558,-500.0,0.00024931,2]
[336979810,1725274241568,-574.04,0.00024931,2]
[336979811,1725274241577,-898.46,0.00024931,2]
[336979812,1725274241587,-500.0,0.00024931,2]
[336979813,1725274241596,-688.53,0.00024931,2]
[336979814,1725274241608,-500.0,0.00024931,2]
[336979815,1725274241618,-609.28,0.00024931,2]
[336979816,1725274241627,-643.97,0.00024931,2]
[336979817,1725274241636,-500.0,0.00024931,2]
[336979818,1725274241645,-500.0,0.00024931,2]
[336979819,1725274241655,-500.0,0.00024931,2]
[336979820,1725274241666,-500.0,0.00024931,2]
[336979821,1725274241675,-500.0,0.00024931,2]
[336979822,1725274241686,-500.0,0.00024931,2]
[336979823,1725274241695,-500.0,0.00024931,2]
[336979824,1725274241705,-500.0,0.00024931,2]
[336979825,1725274241715,-151.0,0.00024931,7]
[336979826,1725274241724,-500.0,0.00024931,2]
[336979827,1725274241734,-500.0,0.00024931,2]
[336979828,1725274241743,-500.0,0.00024931,2]
[336979829,1725274241752,-530.88,0.00024931,2]
[336979830,1725274241761,-509.62,0.00024931,2]
[336979831,1725274241772,-500.0,0.00024931,2]
[336979832,1725274241783,-789.32,0.00024931,2]
[336979833,1725274241792,-500.0,0.00024931,2]
[336979834,1725274241802,-500.0,0.00024931,2]
[336979835,1725274241812,-500.0,0.00024931,2]
[336979836,1725274241825,-882.62,0.00024931,2]
[336979837,1725274241835,-500.0,0.00024931,2]
[336979838,1725274241846,-500.0,0.00024931,2]
[336979839,1725274241858,-500.0,0.00024931,2]
[336979840,1725274241868,-500.0,0.00024931,2]
[336979841,1725274241878,-500.0,0.00024931,2]
[336979842,1725274241887,-151.0,0.00024931,7]
[336979843,1725274241896,-500.0,0.00024931,2]
[336979844,1725274241907,-809.83,0.00024931,2]
[336979845,1725274241917,-380.3912282,0.00024931,2]
[336979846,1725274241926,-500.0,0.00024931,2]
[336979847,1725274241936,-500.0,0.00024931,2]
[336979848,1725274241945,-500.0,0.00024931,2]
[336979849,1725274241955,-500.0,0.00024931,2]
[336979850,1725274242094,-500.0,0.00024931,2]
[336979851,1725274242105,-750.75,0.00024931,2]
[336979852,1725274242117,-500.0,0.00024931,2]
[336979853,1725274242127,-1150.5,0.00024931,2]
[336979854,1725274242137,-500.0,0.00024931,2]
[336979855,1725274242147,-6814.09,0.00024931,2]
[336979856,1725274242159,-500.0,0.00024931,2]
[336979857,1725274242169,-500.0,0.00024931,2]
[336979858,1725274242180,-637.27,0.00024931,2]
[336979859,1725274242191,-1308.56,0.00024931,2]
[336979860,1725274242200,-865.77,0.00024931,2]
[336979861,1725274242211,-950.48,0.00024931,2]
[336979862,1725274242221,-500.0,0.00024931,2]
[336979863,1725274242231,-1009.23,0.00024931,2]
[336979864,1725274242242,-2894.89,0.00024931,2]
[336979865,1725274242252,-500.0,0.00024931,2]
[336979866,1725274242263,-1601.38,0.00024931,2]
[336979867,1725274242273,-500.0,0.00024931,2]
[336979868,1725274242283,-500.0,0.00024931,2]
[336979869,1725274242293,-713.16,0.00024931,2]
[336979870,1725274242302,-1471.23,0.00024931,2]
[336979871,1725274242312,-500.0,0.00024931,2]
[336979872,1725274242321,-842.06,0.00024931,2]
[336979873,1725274242331,-598.48,0.00024931,2]
[336979874,1725274242340,-500.0,0.00024931,2]
[336979875,1725274242350,-718.52,0.00024931,2]
[336979876,1725274242359,-500.0,0.00024931,2]
[336979877,1725274242368,-1029.29,0.00024931,2]
[336979878,1725274242377,-500.0,0.00024931,2]
[336979879,1725274242387,-151.0,0.00024931,7]
[336979880,1725274242396,-500.0,0.00024931,2]
[336979881,1725274242405,-613.02,0.00024931,2]
[336979882,1725274242414,-500.0,0.00024931,2]
[336979883,1725274242423,-613.44929059,0.00024931,2]
[336979884,1725274242432,-865.09,0.00024931,2]
[336979885,1725274242441,-687.81,0.00024931,2]
[336979886,1725274242450,-813.79,0.00024931,2]
[336979887,1725274242459,-500.0,0.00024931,2]
[336979888,1725274242468,-500.0,0.00024931,2]
[336979889,1725274242478,-500.0,0.00024931,2]
[336979890,1725274242488,-1898.68,0.00024931,2]
[336979891,1725274242497,-500.0,0.00024931,2]
[336979892,1725274242507,-534.47,0.00024931,2]
[336979893,1725274242516,-500.0,0.00024931,2]
[336979894,1725274242526,-1265.33,0.00024931,2]
[336979895,1725274242535,-500.0,0.00024931,2]
[336979896,1725274242545,-609.75,0.00024931,2]
[336979897,1725274242555,-500.0,0.00024931,2]
[336979898,1725274242565,-960.51,0.00024931,2]
[336979900,1725274242575,-500.0,0.00024931,2]
[336979902,1725274242584,-500.0,0.00024931,2]
[336979904,1725274242594,-500.0,0.00024931,2]
[336979906,1725274242605,-668.74,0.00024931,2]
[336979907,1725274242620,-500.0,0.00024931,2]
[336979909,1725274242630,-299.00555019,0.00024931,2]
[336979911,1725274242639,-978.13,0.00024931,2]
[336979913,1725274242650,-893.12,0.00024931,2]
[336979915,1725274242660,-500.0,0.00024931,2]
[336979917,1725274242670,-500.0,0.00024931,2]
[336979919,1725274242680,-500.0,0.00024931,2]
[336979921,1725274242691,-735.7,0.00024931,2]
[336979923,1725274242700,-3970.16,0.00024931,2]
[336979925,1725274242709,-500.0,0.00024931,2]
[336979927,1725274242721,-877.32,0.00024931,2]
[336979928,1725274242731,-4849.28,0.00024931,2]
[336979930,1725274242741,-500.0,0.00024931,2]
[336979931,1725274242752,-953.2,0.00024931,2]
[336979932,1725274242761,-500.0,0.00024931,2]
[336979933,1725274242771,-1136.95,0.00024931,2]
[336979934,1725274242781,-730.41,0.00024931,2]
[336979935,1725274242791,-500.0,0.00024931,2]
[336979936,1725274242800,-500.0,0.00024931,2]
[336979937,1725274242810,-500.0,0.00024931,2]
[336979938,1725274242819,-1672.46,0.00024931,2]
[336979939,1725274242829,-710.81,0.00024931,2]
[336979940,1725274242838,-500.0,0.00024931,2]
[336979941,1725274242848,-640.41,0.00024931,2]
[336979942,1725274242857,-1952.94,0.00024931,2]
[336979943,1725274242866,-500.0,0.00024931,2]
[336979944,1725274242875,-941.61,0.00024931,2]
[336979945,1725274242885,-547.19,0.00024931,2]
[336979946,1725274242895,-1195.94,0.00024931,2]
[336979947,1725274242905,-500.0,0.00024931,2]
[336979948,1725274242914,-500.0,0.00024931,2]
[336979949,1725274242923,-523.2,0.00024931,2]
[336979950,1725274242932,-500.0,0.00024931,2]
[336979951,1725274242942,-500.0,0.00024931,2]
[336979952,1725274242951,-500.0,0.00024931,2]
[336979953,1725274242960,-500.0,0.00024931,2]
[336979954,1725274242969,-1299.65,0.00024931,2]
[336979955,1725274242978,-1158.75,0.00024931,2]
[336979956,1725274242988,-668.22,0.00024931,2]
[336979957,1725274242997,-1000.5,0.00025,31]
[336979958,1725274243007,-1011.5,0.00025,31]
[336979959,1725274243016,-159.0,0.00025,2]
[336979960,1725274243025,-1000.0,0.00025,25]
[336979961,1725274243035,-503.59009376,0.00025,2]
[336979962,1725274243044,-153.0,0.00025014,2]
[336979963,1725274243054,-153.0,0.00025014,2]
[336979964,1725274243063,-153.0,0.00025014,2]
[336979965,1725274243073,-153.0,0.00025014,2]
[336979966,1725274243082,-153.0,0.00025014,2]
[336979967,1725274243092,-153.0,0.00025014,2]
[336979968,1725274243103,-3000.0,0.000252,2]
[336979969,1725274243114,-893.97,0.00025203,2]
[336979970,1725274243124,-270.68903728,0.00025203,2]
[336979971,1725274243133,-500.0,0.00025203,2]
[336979972,1725274243143,-500.0,0.00025203,2]
[336979973,1725274243154,-500.0,0.00025203,2]
[336979974,1725274243164,-500.0,0.00025203,2]
[336979975,1725274243173,-500.0,0.00025203,2]
[336979976,1725274243183,-500.0,0.00025203,2]
[336979977,1725274243192,-500.0,0.00025203,2]
[336979978,1725274243203,-500.0,0.00025203,2]
[336979979,1725274243214,-500.0,0.00025203,2]
[336979980,1725274243224,-500.0,0.00025203,2]
[336979981,1725274243236,-500.0,0.00025203,2]
[336979982,1725274243246,-500.0,0.00025203,2]
[336979983,1725274243258,-500.0,0.00025203,2]
[336979984,1725274243267,-500.0,0.00025203,2]
[336979985,1725274243276,-500.0,0.00025203,2]
[336979986,1725274243285,-500.0,0.00025203,2]
[336979987,1725274243294,-500.0,0.00025203,2]
[336979988,1725274243304,-500.0,0.00025203,2]
[336979989,1725274243315,-500.0,0.00025203,2]
[336979990,1725274243324,-500.0,0.00025203,2]
[336979991,1725274243335,-500.0,0.00025203,2]
[336979992,1725274243346,-500.0,0.00025203,2]
[336979993,1725274243355,-500.0,0.00025203,2]
[336979994,1725274243364,-500.0,0.00025203,2]
[336979995,1725274243374,-500.0,0.00025203,2]
[336979996,1725274243385,-500.0,0.00025203,2]
[336979997,1725274243395,-500.0,0.00025203,2]
[336979998,1725274243406,-500.0,0.00025203,2]
[336979999,1725274243416,-500.0,0.00025203,2]
[336980000,1725274243425,-500.0,0.00025203,2]
[336980001,1725274243435,-609.05508805,0.00025203,2]
[336980002,1725274243444,-500.0,0.00025203,2]
[336980003,1725274243454,-500.0,0.00025203,2]
[336980004,1725274243464,-500.0,0.00025203,2]
[336980005,1725274243473,-500.0,0.00025203,2]
[336980006,1725274243483,-500.0,0.00025203,2]
[336980007,1725274243492,-500.0,0.00025203,2]
[336980008,1725274243502,-500.0,0.00025203,2]
[336980009,1725274243512,-500.0,0.00025203,2]
[336980010,1725274243521,-500.0,0.00025203,2]
[336980011,1725274243531,-500.0,0.00025203,2]
[336980012,1725274243540,-500.0,0.00025203,2]
[336980013,1725274243549,-500.0,0.00025203,2]
[336980014,1725274243558,-500.0,0.00025203,2]
[336980015,1725274243567,-151.0,0.00025204,7]
[336980016,1725274243577,-151.0,0.00025204,7]
[336980017,1725274243586,-893.97,0.00025204,2]
[336980018,1725274243595,-893.97,0.00025204,2]
[336980019,1725274243607,-777.21513824,0.00025204,2]
[336980020,1725274243882,-116.75486176,0.00025204,2]
[336980021,1725274243891,-584.24,0.00025205,2]
[336980022,1725274243901,-500.0,0.00025205,2]
[336980023,1725274243910,-151.0,0.00025205,7]
[336980024,1725274243919,-500.0,0.00025205,2]
[336980025,1725274243929,-500.0,0.00025205,2]
[336980026,1725274243939,-500.0,0.00025205,2]
[336980027,1725274243948,-500.0,0.00025205,2]
[336980028,1725274243958,-150.29361262,0.00025205,2]
[336980029,1725274244114,-349.70638738,0.00025205,2]
[336980030,1725274244124,-278.56802446,0.00025205,2]
[336980031,1725274244135,-866.34197554,0.00025205,2]
[336980032,1725274244144,-500.0,0.00025205,2]
[336980033,1725274244154,-500.0,0.00025205,2]
[336980034,1725274244163,-500.0,0.00025205,2]
[336980035,1725274244172,-795.89,0.00025205,2]
[336980036,1725274244181,-521.53,0.00025205,2]
[336980037,1725274244190,-651.75,0.00025205,2]
[336980038,1725274244200,-500.0,0.00025205,2]
[336980039,1725274244208,-500.0,0.00025205,2]
[336980040,1725274244218,-500.0,0.00025205,2]
[336980041,1725274244227,-500.0,0.00025205,2]
[336980042,1725274244238,-574.04,0.00025205,2]
[336980043,1725274244256,-898.46,0.00025205,2]
[336980044,1725274244265,-688.53,0.00025205,2]
[336980045,1725274244274,-500.0,0.00025205,2]
[336980046,1725274244284,-609.28,0.00025205,2]
[336980047,1725274244293,-643.97,0.00025205,2]
[336980048,1725274244302,-500.0,0.00025205,2]
[336980049,1725274244311,-500.0,0.00025205,2]
[336980050,1725274244320,-500.0,0.00025205,2]
[336980051,1725274244330,-500.0,0.00025205,2]
[336980052,1725274244339,-500.0,0.00025205,2]
[336980053,1725274244349,-500.0,0.00025205,2]
[336980054,1725274244357,-500.0,0.00025205,2]
[336980055,1725274244367,-151.0,0.00025205,7]
[336980056,1725274244376,-20.49315325,0.00025205,2]
[336980059,1725274245948,-500.0,0.00024657,2]
[336980060,1725274245959,-236.87080341,0.00024831,2]
[336980061,1725274246002,-1763.12919659,0.00024831,2]
[336980062,1725274246012,-59819.48,0.00025195,3]
[336980063,1725274246022,-479.50684675,0.00025205,2]
[336980064,1725274246031,-500.0,0.00025205,2]
[336980065,1725274246041,-500.0,0.00025205,2]
[336980066,1725274246050,-509.62,0.00025205,2]
[336980067,1725274246059,-500.0,0.00025205,2]
[336980068,1725274246069,-789.32,0.00025205,2]
[336980069,1725274246079,-500.0,0.00025205,2]
[336980070,1725274246088,-500.0,0.00025205,2]
[336980071,1725274246098,-500.0,0.00025205,2]
[336980072,1725274246107,-882.62,0.00025205,2]
[336980073,1725274246116,-500.0,0.00025205,2]
[336980074,1725274246125,-500.0,0.00025205,2]
[336980075,1725274246134,-500.0,0.00025205,2]
[336980076,1725274246143,-500.0,0.00025205,2]
[336980077,1725274246153,-353.22802122,0.00025205,2]
[336980078,1725274246162,-151.0,0.00025205,7]
[336980079,1725274246171,-685.10229996,0.00025205,2]
[336980080,1725274246563,-124.72770004,0.00025205,2]
[336980081,1725274246573,-500.0,0.00025205,2]
[336980082,1725274246582,-500.0,0.00025205,2]
[336980083,1725274246591,-500.0,0.00025205,2]
[336980084,1725274246601,-1150.5,0.00025205,2]
[336980085,1725274246613,-500.0,0.00025205,2]
[336980086,1725274246623,-6814.09,0.00025205,2]
[336980087,1725274246632,-500.0,0.00025205,2]
[336980088,1725274246642,-1308.56,0.00025205,2]
[336980089,1725274246653,-637.27,0.00025205,2]
[336980090,1725274246663,-865.77,0.00025205,2]
[336980091,1725274246673,-950.48,0.00025205,2]
[336980092,1725274246683,-500.0,0.00025205,2]
[336980093,1725274246696,-1009.23,0.00025205,2]
[336980094,1725274246706,-2894.89,0.00025205,2]
[336980095,1725274246717,-500.0,0.00025205,2]
[336980096,1725274246728,-1601.38,0.00025205,2]
[336980097,1725274246740,-500.0,0.00025205,2]
[336980098,1725274246750,-713.16,0.00025205,2]
[336980099,1725274246760,-1471.23,0.00025205,2]
[336980100,1725274246770,-500.0,0.00025205,2]
[336980101,1725274246780,-842.06,0.00025205,2]
[336980102,1725274246790,-598.48,0.00025205,2]
[336980103,1725274246800,-718.52,0.00025205,2]
[336980104,1725274246975,-500.0,0.00025205,2]
[336980105,1725274246988,-1029.29,0.00025205,2]
[336980106,1725274246997,-151.0,0.00025205,7]
[336980107,1725274247007,-500.0,0.00025205,2]
[336980108,1725274247017,-613.02,0.00025205,2]
[336980109,1725274247027,-500.0,0.00025205,2]
[336980110,1725274247037,-865.09,0.00025205,2]
[336980111,1725274247047,-687.81,0.00025205,2]
[336980112,1725274247058,-813.79,0.00025205,2]
[336980113,1725274247067,-500.0,0.00025205,2]
[336980114,1725274247077,-1898.68,0.00025205,2]
[336980115,1725274247086,-500.0,0.00025205,2]
[336980116,1725274247095,-534.47,0.00025205,2]
[336980117,1725274247104,-500.0,0.00025205,2]
[336980118,1725274247114,-1265.33,0.00025205,2]
[336980119,1725274247125,-500.0,0.00025205,2]
[336980120,1725274247135,-609.75,0.00025205,2]
[336980121,1725274247145,-960.51,0.00025205,2]
[336980122,1725274247157,-500.0,0.00025205,2]
[336980123,1725274247166,-500.0,0.00025205,2]
[336980124,1725274247177,-500.0,0.00025205,2]
[336980125,1725274247187,-668.74,0.00025205,2]
[336980126,1725274247196,-500.0,0.00025205,2]
[336980127,1725274247205,-978.13,0.00025205,2]
[336980128,1725274247214,-893.12,0.00025205,2]
[336980129,1725274247224,-500.0,0.00025205,2]
[336980130,1725274247234,-343.53873727,0.00025205,2]
[336980131,1725274247244,-500.0,0.00025205,2]
[336980132,1725274247254,-735.7,0.00025205,2]
[336980133,1725274247264,-3970.16,0.00025205,2]
[336980134,1725274247273,-500.0,0.00025205,2]
[336980135,1725274247282,-877.32,0.00025205,2]
[336980136,1725274247291,-4849.28,0.00025205,2]
[336980137,1725274247300,-500.0,0.00025205,2]
[336980138,1725274247309,-953.2,0.00025205,2]
[336980139,1725274247319,-500.0,0.00025205,2]
[336980140,1725274247328,-1136.95,0.00025205,2]
[336980141,1725274247337,-730.41,0.00025205,2]
[336980142,1725274247346,-500.0,0.00025205,2]
[336980143,1725274247357,-261.06885198,0.00025205,2]
[336980144,1725274247367,-500.0,0.00025205,2]
[336980145,1725274247377,-1672.46,0.00025205,2]
[336980146,1725274247386,-710.81,0.00025205,2]
[336980147,1725274247395,-500.0,0.00025205,2]
[336980148,1725274247404,-640.41,0.00025205,2]
[336980149,1725274247413,-1952.94,0.00025205,2]
[336980150,1725274247422,-941.61,0.00025205,2]
[336980151,1725274247432,-547.19,0.00025205,2]
[336980152,1725274247442,-1195.94,0.00025205,2]
[336980153,1725274247452,-500.0,0.00025205,2]
[336980154,1725274247462,-500.0,0.00025205,2]
[336980155,1725274247471,-523.2,0.00025205,2]
[336980156,1725274247480,-500.0,0.00025205,2]
[336980157,1725274247491,-500.0,0.00025205,2]
[336980158,1725274247508,-500.0,0.00025205,2]
[336980159,1725274247518,-500.0,0.00025205,2]
[336980160,1725274247527,-1299.65,0.00025205,2]
[336980161,1725274247537,-1158.75,0.00025205,2]
[336980162,1725274247546,-668.22,0.00025205,2]
[336980163,1725274247555,-151.0,0.00025208,7]
[336980164,1725274247565,-244.37494817,0.00025209,2]
[336980165,1725274247575,-5414.53621992,0.00025209,2]
[336980166,1725274247584,-151.0,0.00025209,7]
[336980167,1725274247593,-3000.0,0.0002521,2]
[336980168,1725274247604,-3000.0,0.0002522,2]
[336980169,1725274247615,-178.0,0.0002522,7]
[336980170,1725274247625,-1000.0,0.00025221,2]
[336980171,1725274247635,-1000.0,0.00025221,2]
[336980172,1725274247645,-3000.0,0.0002523,2]
[336980173,1725274247656,-3000.0,0.0002524,2]
[336980174,1725274247666,-1964.65023882,0.00025242,2]
[336980175,1725274247677,-3000.0,0.0002525,2]
[336980176,1725274247689,-3000.0,0.0002526,2]
[336980177,1725274247709,-893.97,0.00025269,2]
[336980178,1725274247720,-3000.0,0.0002527,2]
[336980179,1725274247730,-500.0,0.00025273,2]
[336980180,1725274247742,-3000.0,0.0002528,2]
[336980181,1725274247752,-3000.0,0.0002529,2]
[336980182,1725274247764,-4847.963157,0.000253,2]
[336980183,1725274247774,-1490.72836355,0.00025379,2]
[336980184,1725274247784,-201.18317704,0.00025469,3]
[336980185,1725274247794,-893.97,0.00025478,2]
[336980186,1725274247804,-893.97,0.00025478,2]
[336980187,1725274247814,-893.97,0.00025478,2]
[336980188,1725274247824,-500.0,0.00025479,2]